lending/lending_fUSD_20250719
["ID","MTS","AMOUNT","RATE_DAILY","PERIOD"]
[373231889,1752919838420,-480.0,0.00019178,2]
[373231890,1752919838430,-480.0,0.00019178,2]
[373231891,1752919838440,-473.92593507,0.00019178,2]
[373231892,1752919838450,-239.15656017,0.00019178,2]
[373231893,1752919838460,-474.14677438,0.00019178,2]
[373231894,1752919838471,-480.0,0.00019178,2]
[373231895,1752919838481,-480.0,0.00019178,2]
[373231896,1752919838490,-480.0,0.00019178,2]
[373231897,1752919838499,-473.22014088,0.00019178,2]
[373231898,1752919838508,-480.0,0.00019178,2]
[373231899,1752919838518,-480.0,0.00019178,2]
[373231900,1752919838527,-482.5952609,0.00019178,2]
[373231901,1752919838537,-480.0,0.00019178,2]
[373231902,1752919838547,-480.0,0.00019178,2]
[373231903,1752919838556,-480.0,0.00019178,2]
[373231904,1752919838566,-460.79583097,0.00019178,2]
[373231905,1752919838575,-480.0,0.00019178,2]
[373231906,1752919838584,-488.9971824,0.00019178,2]
[373231907,1752919838594,-480.0,0.00019178,2]
[373231908,1752919838603,-480.0,0.00019178,2]
[373231909,1752919838613,-480.0,0.00019178,2]
[373231910,1752919838623,-465.80666876,0.00019178,2]
[373231911,1752919838632,-583.70245619,0.00019178,2]
[373231912,1752919838641,-489.00905924,0.00019178,2]
[373231913,1752919838651,-476.56148026,0.00019178,2]
[373231914,1752919838661,-460.0,0.00019178,2]
[373231915,1752919838670,-460.0,0.00019178,2]
[373231916,1752919838679,-462.6937732,0.00019178,2]
[373231917,1752919838689,-480.0,0.00019178,2]
[373231918,1752919838699,-257.14773033,0.00019178,2]
[373231919,1752919838708,-625.89,0.00019178,2]
[373231920,1752919838717,-460.0,0.00019178,2]
[373231921,1752919838729,-460.0,0.00019178,2]
[373231922,1752919838738,-480.0,0.00019178,2]
[373231924,1752919838747,-480.0,0.00019178,2]
[373231926,1752919838757,-547.46,0.00019178,2]
[373231928,1752919838766,-536.57579771,0.00019178,2]
[373231930,1752919838775,-528.04876184,0.00019178,2]
[373231932,1752919838785,-476.099748,0.00019178,2]
[373231934,1752919838794,-490.35992218,0.00019178,2]
[373231936,1752919838803,-460.0,0.00019178,2]
[373231937,1752919838813,-480.0,0.00019178,2]
[373231939,1752919838826,-473.01193591,0.00019178,2]
[373231941,1752919838835,-474.69,0.00019178,2]
[373231943,1752919838844,-468.23499559,0.00019178,2]
[373231945,1752919838854,-460.0,0.00019178,2]
[373231947,1752919838864,-472.56934496,0.00019178,2]
[373231948,1752919838874,-469.15297038,0.00019178,2]
[373231950,1752919838883,-460.0,0.00019178,2]
[373231952,1752919838893,-454.0,0.00019178,2]
[373231954,1752919838902,-480.0,0.00019178,2]
[373231955,1752919838913,-487.21,0.00019178,2]
[373231958,1752919838923,-460.0,0.00019178,2]
[373231960,1752919838933,-473.19789769,0.00019178,2]
[373231962,1752919838949,-476.59912503,0.00019178,2]
[373231963,1752919838961,-460.0,0.00019178,2]
[373231965,1752919838971,-473.96459238,0.00019178,2]
[373231967,1752919838980,-578.44266539,0.00019178,2]
[373231969,1752919838990,-470.10298867,0.00019178,2]
[373231971,1752919838999,-480.0,0.00019178,2]
[373231973,1752919839008,-446.24712727,0.00019178,2]
[373231975,1752919839017,-480.0,0.00019178,2]
[373231977,1752919839026,-483.33597743,0.00019178,2]
[373231979,1752919839035,-462.70883015,0.00019178,2]
[373231981,1752919839046,-486.9494114,0.00019178,2]
[373231983,1752919839055,-480.0,0.00019178,2]
[373231985,1752919839066,-621.96,0.00019178,2]
[373231987,1752919839076,-480.0,0.00019178,2]
[373231989,1752919839085,-468.49618569,0.00019178,2]
[373231991,1752919839094,-586.12,0.00019178,2]
[373231993,1752919839103,-620.31,0.00019178,2]
[373231995,1752919839113,-460.0,0.00019178,2]
[373231997,1752919839123,-460.0,0.00019178,2]
[373231999,1752919839133,-469.16562369,0.00019178,2]
[373232001,1752919839142,-463.13485855,0.00019178,2]
[373232003,1752919839151,-460.0,0.00019178,2]
[373232005,1752919839161,-469.88563796,0.00019178,2]
[373232007,1752919839170,-480.0,0.00019178,2]
[373232009,1752919839179,-468.11105218,0.00019178,2]
[373232011,1752919839189,-480.0,0.00019178,2]
[373232013,1752919839199,-463.58424216,0.00019178,2]
[373232015,1752919839209,-521.58407507,0.00019178,2]
[373232017,1752919839220,-480.0,0.00019178,2]
[373232019,1752919839229,-460.0,0.00019178,2]
[373232021,1752919839238,-462.33324531,0.00019178,2]
[373232023,1752919839248,-480.0,0.00019178,2]
[373232025,1752919839258,-480.0,0.00019178,2]
[373232027,1752919839267,-480.0,0.00019178,2]
[373232029,1752919839277,-460.0,0.00019178,2]
[373232031,1752919839286,-480.0,0.00019178,2]
[373232033,1752919839296,-480.0,0.00019178,2]
[373232035,1752919839306,-480.0,0.00019178,2]
[373232037,1752919839315,-480.0,0.00019178,2]
[373232039,1752919839325,-480.0,0.00019178,2]
[373232041,1752919839334,-460.0,0.00019178,2]
[373232043,1752919839344,-460.0,0.00019178,2]
[373232045,1752919839354,-480.0,0.00019178,2]
[373232047,1752919839363,-460.0,0.00019178,2]
[373232049,1752919839372,-480.0,0.00019178,2]
[373232051,1752919839381,-460.0,0.00019178,2]
[373232053,1752919839391,-460.0,0.00019178,2]
[373232055,1752919839401,-480.0,0.00019178,2]
[373232057,1752919839410,-480.0,0.00019178,2]
[373232059,1752919839420,-460.0,0.00019178,2]
[373232061,1752919839429,-480.0,0.00019178,2]
[373232064,1752919839439,-462.11989619,0.00019178,2]
[373232067,1752919839448,-469.33231496,0.00019178,2]
[373232069,1752919839457,-480.0,0.00019178,2]
[373232071,1752919839466,-480.0,0.00019178,2]
[373232073,1752919839477,-558.08,0.00019178,2]
[373232075,1752919839487,-460.0,0.00019178,2]
[373232077,1752919839496,-460.0,0.00019178,2]
[373232079,1752919839505,-480.0,0.00019178,2]
[373232081,1752919839515,-269.70062697,0.00019178,2]
[373232083,1752919839524,-462.75479973,0.00019178,2]
[373232085,1752919839534,-480.0,0.00019178,2]
[373232087,1752919839544,-480.0,0.00019178,2]
[373232089,1752919839553,-462.64402988,0.00019178,2]
[373232091,1752919839562,-480.0,0.00019178,2]
[373232093,1752919839572,-479.49943548,0.00019178,2]
[373232095,1752919839581,-480.0,0.00019178,2]
[373232097,1752919839590,-529.05,0.00019178,2]
[373232099,1752919839600,-480.0,0.00019178,2]
[373232101,1752919839609,-487.08683265,0.00019178,2]
[373232103,1752919839618,-485.84647133,0.00019178,2]
[373232105,1752919839627,-507.52698768,0.00019178,2]
[373232107,1752919839637,-480.0,0.00019178,2]
[373232108,1752919839647,-486.38236089,0.00019178,2]
[373232110,1752919839656,-480.0,0.00019178,2]
[373232113,1752919839675,-465.20651768,0.00019178,2]
[373232115,1752919839691,-460.0,0.00019178,2]
[373232117,1752919839701,-230.62136649,0.00019178,2]
[373232119,1752919839710,-480.0,0.00019178,2]
[373232120,1752919839719,-460.0,0.00019178,2]
[373232122,1752919839729,-480.0,0.00019178,2]
[373232125,1752919839740,-480.0,0.00019178,2]
[373232127,1752919839749,-480.0,0.00019178,2]
[373232129,1752919839759,-480.0,0.00019178,2]
[373232131,1752919839773,-480.0,0.00019178,2]
[373232133,1752919839783,-462.79296432,0.00019178,2]
[373232135,1752919839792,-187.98445678,0.00019178,2]
[373232137,1752919839801,-470.52215411,0.00019178,2]
[373232139,1752919839810,-480.0,0.00019178,2]
[373232141,1752919839822,-480.0,0.00019178,2]
[373232143,1752919839832,-470.43728633,0.00019178,2]
[373232144,1752919839842,-466.87226347,0.00019178,2]
[373232146,1752919839852,-463.41151762,0.00019178,2]
[373232148,1752919839862,-470.59177161,0.00019178,2]
[373232151,1752919839873,-468.9320052,0.00019178,2]
[373232152,1752919839884,-460.0,0.00019178,2]
[373232154,1752919839893,-480.0,0.00019178,2]
[373232156,1752919839904,-462.26749518,0.00019178,2]
[373232159,1752919839915,-480.0,0.00019178,2]
[373232160,1752919839924,-465.96755913,0.00019178,2]
[373232163,1752919839934,-460.0,0.00019178,2]
[373232164,1752919839943,-480.0,0.00019178,2]
[373232166,1752919839953,-472.27231502,0.00019178,2]
[373232169,1752919839963,-476.18463894,0.00019178,2]
[373232170,1752919839973,-480.0,0.00019178,2]
[373232172,1752919839983,-480.0,0.00019178,2]
[373232174,1752919839993,-480.0,0.00019178,2]
[373232176,1752919840002,-480.0,0.00019178,2]
[373232178,1752919840012,-480.0,0.00019178,2]
[373232180,1752919840021,-460.0,0.00019178,2]
[373232182,1752919840031,-472.5342999,0.00019178,2]
[373232184,1752919840040,-480.0,0.00019178,2]
[373232186,1752919840049,-480.0,0.00019178,2]
[373232188,1752919840059,-480.0,0.00019178,2]
[373232190,1752919840068,-300.72368092,0.00019178,2]
[373232192,1752919840077,-476.1866274,0.00019178,2]
[373232194,1752919840086,-480.0,0.00019178,2]
[373232196,1752919840096,-480.0,0.00019178,2]
[373232199,1752919840107,-480.0,0.00019178,2]
[373232201,1752919840117,-480.0,0.00019178,2]
[373232203,1752919840127,-480.0,0.00019178,2]
[373232205,1752919840136,-480.0,0.00019178,2]
[373232207,1752919840146,-480.0,0.00019178,2]
[373232209,1752919840155,-469.7307822,0.00019178,2]
[373232210,1752919840165,-564.52481482,0.00019178,2]
[373232212,1752919840175,-480.0,0.00019178,2]
[373232214,1752919840184,-480.0,0.00019178,2]
[373232216,1752919840194,-461.68942804,0.00019178,2]
[373232218,1752919840203,-469.21314889,0.00019178,2]
[373232220,1752919840212,-460.0,0.00019178,2]
[373232223,1752919840223,-480.0,0.00019178,2]
[373232224,1752919840233,-480.0,0.00019178,2]
[373232227,1752919840243,-480.0,0.00019178,2]
[373232229,1752919840253,-477.61401656,0.00019178,2]
[373232230,1752919840262,-480.0,0.00019178,2]
[373232232,1752919840272,-462.10305543,0.00019178,2]
[373232234,1752919840281,-480.0,0.00019178,2]
[373232236,1752919840290,-480.0,0.00019178,2]
[373232238,1752919840300,-525.44,0.00019178,2]
[373232240,1752919840309,-460.99879901,0.00019178,2]
[373232242,1752919840319,-480.0,0.00019178,2]
[373232244,1752919840328,-480.0,0.00019178,2]
[373232246,1752919840337,-481.52408282,0.00019178,2]
[373232248,1752919840347,-480.0,0.00019178,2]
[373232250,1752919840356,-480.0,0.00019178,2]
[373232252,1752919840366,-480.0,0.00019178,2]
[373232254,1752919840376,-490.26471671,0.00019178,2]
[373232256,1752919840388,-480.0,0.00019178,2]
[373232258,1752919840398,-480.0,0.00019178,2]
[373232260,1752919840408,-480.0,0.00019178,2]
[373232262,1752919840417,-460.0,0.00019178,2]
[373232264,1752919840426,-480.0,0.00019178,2]
[373232266,1752919840436,-480.0,0.00019178,2]
[373232268,1752919840445,-549.43860532,0.00019178,2]
[373232270,1752919840455,-460.0,0.00019178,2]
[373232272,1752919840464,-480.0,0.00019178,2]
[373232274,1752919840475,-480.0,0.00019178,2]
[373232276,1752919840484,-480.0,0.00019178,2]
[373232278,1752919840493,-480.0,0.00019178,2]
[373232280,1752919840503,-480.0,0.00019178,2]
[373232282,1752919840512,-480.0,0.00019178,2]
[373232284,1752919840522,-500.0,0.00019178,2]
[373232286,1752919840532,-500.0,0.00019178,2]
[373232288,1752919840541,-500.0,0.00019178,2]
[373232290,1752919840552,-500.0,0.00019178,2]
[373232292,1752919840562,-480.0,0.00019178,2]
[373232294,1752919840572,-500.0,0.00019178,2]
[373232296,1752919840581,-480.0,0.00019178,2]
[373232298,1752919840591,-500.0,0.00019178,2]
[373232300,1752919840600,-500.0,0.00019178,2]
[373232302,1752919840610,-256.128832,0.00019178,2]
[373232304,1752919840619,-175.32440046,0.00019178,2]
[373232306,1752919840628,-480.0,0.00019178,2]
[373232308,1752919840637,-480.0,0.00019178,2]
[373232310,1752919840647,-480.0,0.00019178,2]
[373232312,1752919840656,-460.0,0.00019178,2]
[373232314,1752919840666,-480.0,0.00019178,2]
[373232316,1752919840675,-473.01804454,0.00019178,2]
[373232323,1752919840736,-480.0,0.00019178,2]
[373232325,1752919840746,-480.0,0.00019178,2]
[373232327,1752919840755,-480.0,0.00019178,2]
[373232329,1752919840765,-480.0,0.00019178,2]
[373232331,1752919840774,-500.0,0.00019178,2]
[373232333,1752919840783,-480.0,0.00019178,2]
[373232335,1752919840793,-460.0,0.00019178,2]
[373232337,1752919840802,-480.0,0.00019178,2]
[373232339,1752919840811,-480.0,0.00019178,2]
[373232341,1752919840824,-480.0,0.00019178,2]
[373232343,1752919840833,-467.40971499,0.00019178,2]
[373232345,1752919840842,-493.56005262,0.00019178,2]
[373232347,1752919840851,-480.0,0.00019178,2]
[373232349,1752919840860,-480.0,0.00019178,2]
[373232351,1752919840869,-480.0,0.00019178,2]
[373232353,1752919840878,-460.0,0.00019178,2]
[373232355,1752919840888,-480.0,0.00019178,2]
[373232356,1752919840897,-444.84196486,0.00019178,2]
[373232358,1752919840908,-480.0,0.00019178,2]
[373232360,1752919840917,-338.89783352,0.00019178,2]
[373232362,1752919840926,-541.94090602,0.00019178,2]
[373232364,1752919840935,-480.0,0.00019178,2]
[373232366,1752919840945,-480.0,0.00019178,2]
[373232368,1752919840954,-450.0,0.00019178,2]
[373232370,1752919840963,-480.0,0.00019178,2]
[373232372,1752919840974,-480.0,0.00019178,2]
[373232374,1752919840983,-473.34508761,0.00019178,2]
[373232376,1752919840993,-480.0,0.00019178,2]
[373232378,1752919841002,-460.0,0.00019178,2]
[373232380,1752919841011,-480.0,0.00019178,2]
[373232382,1752919841020,-480.0,0.00019178,2]
[373232384,1752919841029,-461.84433857,0.00019178,2]
[373232385,1752919841038,-480.0,0.00019178,2]
[373232386,1752919841047,-480.0,0.00019178,2]
[373232387,1752919841056,-587.04,0.00019178,2]
[373232388,1752919841065,-587.04,0.00019178,2]
[373232390,1752919841074,-587.04,0.00019178,2]
[373232392,1752919841083,-587.04,0.00019178,2]
[373232394,1752919841092,-587.04,0.00019178,2]
[373232396,1752919841101,-587.04,0.00019178,2]
[373232398,1752919841110,-480.0,0.00019178,2]
[373232400,1752919841119,-587.04,0.00019178,2]
[373232402,1752919841128,-587.04,0.00019178,2]
[373232404,1752919841137,-587.04,0.00019178,2]
[373232406,1752919841147,-587.04,0.00019178,2]
[373232408,1752919841156,-587.04,0.00019178,2]
[373232410,1752919841166,-587.04,0.00019178,2]
[373232412,1752919841175,-460.0,0.00019178,2]
[373232414,1752919841184,-480.0,0.00019178,2]
[373232416,1752919841193,-461.76983509,0.00019178,2]
[373232418,1752919841202,-480.0,0.00019178,2]
[373232420,1752919841211,-480.0,0.00019178,2]
[373232422,1752919841220,-480.0,0.00019178,2]
[373232424,1752919841231,-587.04,0.00019178,2]
[373232426,1752919841241,-587.04,0.00019178,2]
[373232428,1752919841250,-587.04,0.00019178,2]
[373232430,1752919841259,-587.04,0.00019178,2]
[373232432,1752919841268,-587.04,0.00019178,2]
[373232434,1752919841277,-480.0,0.00019178,2]
[373232436,1752919841287,-587.04,0.00019178,2]
[373232438,1752919841296,-587.04,0.00019178,2]
[373232440,1752919841307,-468.33068613,0.00019178,2]
[373232442,1752919841316,-587.04,0.00019178,2]
[373232444,1752919841325,-587.04,0.00019178,2]
[373232446,1752919841334,-480.0,0.00019178,2]
[373232448,1752919841343,-587.04,0.00019178,2]
[373232450,1752919841352,-587.04,0.00019178,2]
[373232452,1752919841361,-587.11103447,0.00019178,2]
[373232454,1752919841371,-480.0,0.00019178,2]
[373232456,1752919841381,-464.66913329,0.00019178,2]
[373232458,1752919841391,-463.7715011,0.00019178,2]
[373232460,1752919841400,-480.0,0.00019178,2]
[373232463,1752919841410,-480.0,0.00019178,2]
[373232464,1752919841419,-480.0,0.00019178,2]
[373232467,1752919841428,-480.0,0.00019178,2]
[373232468,1752919841437,-528.46,0.00019178,2]
[373232470,1752919841446,-480.0,0.00019178,2]
[373232472,1752919841454,-480.0,0.00019178,2]
[373232474,1752919841464,-467.25154995,0.00019178,2]
[373232477,1752919841474,-480.0,0.00019178,2]
[373232479,1752919841483,-480.0,0.00019178,2]
[373232480,1752919841493,-480.0,0.00019178,2]
[373232482,1752919841502,-480.0,0.00019178,2]
[373232485,1752919841512,-600.73,0.00019178,2]
[373232487,1752919841521,-460.0,0.00019178,2]
[373232489,1752919841531,-480.0,0.00019178,2]
[373232491,1752919841540,-480.0,0.00019178,2]
[373232492,1752919841549,-460.0,0.00019178,2]
[373232494,1752919841559,-588.72,0.00019178,2]
[373232496,1752919841568,-480.0,0.00019178,2]
[373232498,1752919841578,-480.0,0.00019178,2]
[373232500,1752919841588,-480.0,0.00019178,2]
[373232502,1752919841597,-480.0,0.00019178,2]
[373232504,1752919841607,-460.0,0.00019178,2]
[373232506,1752919841616,-480.0,0.00019178,2]
[373232508,1752919841625,-480.0,0.00019178,2]
[373232510,1752919841634,-466.20981875,0.00019178,2]
[373232512,1752919841643,-391.86104939,0.00019178,2]
[373232514,1752919841653,-480.0,0.00019178,2]
[373232516,1752919841662,-480.0,0.00019178,2]
[373232518,1752919841671,-480.0,0.00019178,2]
[373232520,1752919841680,-480.0,0.00019178,2]
[373232522,1752919841689,-480.0,0.00019178,2]
[373232524,1752919841698,-480.0,0.00019178,2]
[373232526,1752919841707,-480.0,0.00019178,2]
[373232527,1752919841717,-480.0,0.00019178,2]
[373232530,1752919841729,-480.0,0.00019178,2]
[373232531,1752919841738,-193.35926419,0.00019178,2]
[373232533,1752919841747,-480.0,0.00019178,2]
[373232535,1752919841756,-480.0,0.00019178,2]
[373232537,1752919841765,-480.0,0.00019178,2]
[373232539,1752919841775,-480.0,0.00019178,2]
[373232541,1752919841784,-480.0,0.00019178,2]
[373232543,1752919841794,-460.0,0.00019178,2]
[373232545,1752919841804,-480.0,0.00019178,2]
[373232547,1752919841813,-470.06003331,0.00019178,2]
[373232549,1752919841826,-480.0,0.00019178,2]
[373232551,1752919841835,-460.0,0.00019178,2]
[373232553,1752919841844,-480.0,0.00019178,2]
[373232555,1752919841854,-480.0,0.00019178,2]
[373232557,1752919841863,-480.0,0.00019178,2]
[373232559,1752919841872,-480.0,0.00019178,2]
[373232561,1752919841882,-480.0,0.00019178,2]
[373232563,1752919841891,-470.98698873,0.00019178,2]
[373232565,1752919841902,-480.0,0.00019178,2]
[373232567,1752919841912,-602.16950363,0.00019178,2]
[373232569,1752919841921,-480.0,0.00019178,2]
[373232571,1752919841930,-480.0,0.00019178,2]
[373232573,1752919841939,-480.0,0.00019178,2]
[373232574,1752919841947,-462.48838106,0.00019178,2]
[373232576,1752919841957,-441.39364778,0.00019178,2]
[373232578,1752919841966,-480.0,0.00019178,2]
[373232580,1752919841976,-480.0,0.00019178,2]
[373232582,1752919841986,-480.0,0.00019178,2]
[373232584,1752919841996,-480.0,0.00019178,2]
[373232586,1752919842006,-480.0,0.00019178,2]
[373232588,1752919842016,-480.0,0.00019178,2]
[373232590,1752919842026,-472.99287944,0.00019178,2]
[373232592,1752919842036,-480.0,0.00019178,2]
[373232595,1752919842046,-480.0,0.00019178,2]
[373232597,1752919842056,-480.0,0.00019178,2]
[373232598,1752919842065,-480.0,0.00019178,2]
[373232600,1752919842074,-480.0,0.00019178,2]
[373232602,1752919842084,-480.0,0.00019178,2]
[373232604,1752919842093,-480.0,0.00019178,2]
[373232606,1752919842103,-480.0,0.00019178,2]
[373232608,1752919842112,-480.0,0.00019178,2]
[373232610,1752919842122,-462.68788276,0.00019178,2]
[373232612,1752919842131,-463.62949213,0.00019178,2]
[373232614,1752919842141,-480.0,0.00019178,2]
[373232616,1752919842150,-469.95483983,0.00019178,2]
[373232618,1752919842159,-480.0,0.00019178,2]
[373232620,1752919842168,-460.0,0.00019178,2]
[373232622,1752919842177,-465.67709723,0.00019178,2]
[373232624,1752919842186,-480.0,0.00019178,2]
[373232626,1752919842196,-464.0163538,0.00019178,2]
[373232628,1752919842205,-471.48521167,0.00019178,2]
[373232630,1752919842215,-468.635541,0.00019178,2]
[373232632,1752919842224,-464.60201266,0.00019178,2]
[373232634,1752919842234,-461.76065158,0.00019178,2]
[373232636,1752919842243,-485.43874176,0.00019178,2]
[373232638,1752919842253,-463.38340613,0.00019178,2]
[373232640,1752919842262,-468.53680572,0.00019178,2]
[373232642,1752919842272,-468.28952098,0.00019178,2]
[373232644,1752919842281,-480.0,0.00019178,2]
[373232646,1752919842290,-474.70837967,0.00019178,2]
[373232648,1752919842299,-480.0,0.00019178,2]
[373232650,1752919842308,-480.0,0.00019178,2]
[373232652,1752919842317,-464.30819466,0.00019178,2]
[373232653,1752919842326,-463.16174368,0.00019178,2]
[373232655,1752919842335,-480.0,0.00019178,2]
[373232657,1752919842346,-480.0,0.00019178,2]
[373232659,1752919842355,-469.14484638,0.00019178,2]
[373232662,1752919842366,-467.97128295,0.00019178,2]
[373232664,1752919842374,-480.0,0.00019178,2]
[373232666,1752919842384,-463.39729065,0.00019178,2]
[373232669,1752919842393,-480.0,0.00019178,2]
[373232672,1752919842403,-474.64744985,0.00019178,2]
[373232673,1752919842413,-500.0,0.00019178,2]
[373232675,1752919842423,-500.0,0.00019178,2]
[373232677,1752919842432,-500.0,0.00019178,2]
[373232679,1752919842443,-500.0,0.00019178,2]
[373232681,1752919842453,-500.0,0.00019178,2]
[373232685,1752919842462,-464.04488128,0.00019178,2]
[373232688,1752919842472,-471.8973761,0.00019178,2]
[373232690,1752919842481,-500.0,0.00019178,2]
[373232692,1752919842492,-482.69288722,0.00019178,2]
[373232694,1752919842501,-480.0,0.00019178,2]
[373232696,1752919842510,-480.0,0.00019178,2]
[373232698,1752919842520,-480.0,0.00019178,2]
[373232700,1752919842529,-175.99130695,0.00019178,2]
[373232702,1752919842538,-480.0,0.00019178,2]
[373232703,1752919842548,-472.07932668,0.00019178,2]
[373232705,1752919842557,-464.5579978,0.00019178,2]
[373232707,1752919842567,-465.28892802,0.00019178,2]
[373232709,1752919842576,-480.0,0.00019178,2]
[373232711,1752919842586,-480.0,0.00019178,2]
[373232713,1752919842596,-480.0,0.00019178,2]
[373232715,1752919842605,-469.5138422,0.00019178,2]
[373232717,1752919842614,-462.7086396,0.00019178,2]
[373232719,1752919842624,-463.03918567,0.00019178,2]
[373232721,1752919842633,-518.65,0.00019178,2]
[373232723,1752919842643,-480.0,0.00019178,2]
[373232725,1752919842652,-463.39787673,0.00019178,2]
[373232727,1752919842662,-480.0,0.00019178,2]
[373232729,1752919842671,-461.52322152,0.00019178,2]
[373232731,1752919842681,-555.35736896,0.00019178,2]
[373232733,1752919842690,-480.0,0.00019178,2]
[373232735,1752919842699,-462.69329383,0.00019178,2]
[373232737,1752919842709,-480.0,0.00019178,2]
[373232739,1752919842718,-462.87989535,0.00019178,2]
[373232741,1752919842729,-480.0,0.00019178,2]
[373232743,1752919842738,-462.86590175,0.00019178,2]
[373232745,1752919842747,-468.87574944,0.00019178,2]
[373232747,1752919842757,-480.0,0.00019178,2]
[373232749,1752919842766,-466.45961839,0.00019178,2]
[373232750,1752919842775,-3225.72,0.00019178,2]
[373232752,1752919842785,-464.53244324,0.00019178,2]
[373232754,1752919842794,-480.0,0.00019178,2]
[373232757,1752919842805,-467.37908028,0.00019178,2]
[373232758,1752919842814,-480.0,0.00019178,2]
[373232760,1752919842829,-480.0,0.00019178,2]
[373232762,1752919842839,-482.03235512,0.00019178,2]
[373232764,1752919842849,-467.24391695,0.00019178,2]
[373232766,1752919842859,-480.0,0.00019178,2]
[373232768,1752919842869,-480.0,0.00019178,2]
[373232770,1752919842878,-929.65,0.00019178,2]
[373232772,1752919842888,-516.79013176,0.00019178,2]
[373232774,1752919842898,-480.0,0.00019178,2]
[373232776,1752919842911,-546.84,0.00019178,2]
[373232778,1752919842920,-480.0,0.00019178,2]
[373232780,1752919842929,-480.0,0.00019178,2]
[373232782,1752919842939,-480.0,0.00019178,2]
[373232784,1752919842949,-480.0,0.00019178,2]
[373232786,1752919842958,-471.14976223,0.00019178,2]
[373232788,1752919842968,-464.4959142,0.00019178,2]
[373232790,1752919842978,-480.0,0.00019178,2]
[373232792,1752919842988,-480.0,0.00019178,2]
[373232794,1752919842998,-480.0,0.00019178,2]
[373232796,1752919843007,-464.03176389,0.00019178,2]
[373232798,1752919843017,-3351.16,0.00019178,2]
[373232800,1752919843026,-480.0,0.00019178,2]
[373232802,1752919843035,-480.0,0.00019178,2]
[373232804,1752919843045,-3462.2,0.00019178,2]
[373232806,1752919843054,-480.0,0.00019178,2]
[373232807,1752919843063,-480.0,0.00019178,2]
[373232809,1752919843072,-480.0,0.00019178,2]
[373232811,1752919843081,-480.0,0.00019178,2]
[373232813,1752919843091,-462.75828855,0.00019178,2]
[373232815,1752919843100,-465.03368017,0.00019178,2]
[373232817,1752919843109,-466.05582249,0.00019178,2]
[373232819,1752919843118,-480.0,0.00019178,2]
[373232821,1752919843128,-480.0,0.00019178,2]
[373232823,1752919843137,-480.0,0.00019178,2]
[373232825,1752919843147,-462.14875959,0.00019178,2]
[373232827,1752919843156,-480.0,0.00019178,2]
[373232829,1752919843166,-480.0,0.00019178,2]
[373232831,1752919843175,-3220.57,0.00019178,2]
[373232833,1752919843183,-463.51498986,0.00019178,2]
[373232835,1752919843192,-480.0,0.00019178,2]
[373232837,1752919843202,-480.0,0.00019178,2]
[373232839,1752919843211,-480.0,0.00019178,2]
[373232840,1752919843221,-480.0,0.00019178,2]
[373232842,1752919843232,-480.0,0.00019178,2]
[373232844,1752919843241,-480.0,0.00019178,2]
[373232846,1752919843251,-461.30885743,0.00019178,2]
[373232848,1752919843260,-480.0,0.00019178,2]
[373232850,1752919843269,-480.0,0.00019178,2]